[Event "Titled Tuesday Blitz January 11 2022"]
[White "Tanenbaum, Zachary"]
[Black "Gomez, Carlos David"]
[WhiteFideId "2060850"]
[BlackFideId "114669"]
[WhiteElo "2168"]
[BlackElo "2340"]
[Result "1-0"]
[Round "11"]
[TimeControl "180+1"]
[Date "2022.01.11"]
[WhiteClock "0:01:25"]
[BlackClock "0:01:20"]

1. e4 {[%clk 0:03:00]}  d5 {[%clk 0:02:58]} 2. exd5 {[%clk 0:03:00]}  Nf6 {[%clk 0:02:58]} 3. Bb5+ {[%clk 0:03:00]}  c6 {[%clk 0:02:55]} 4. dxc6 {[%clk 0:03:01]}  bxc6 {[%clk 0:02:56]} 5. Bc4 {[%clk 0:02:59]}  e5 {[%clk 0:02:57]} 6. d3 {[%clk 0:02:58]}  Bc5 {[%clk 0:02:56]} 7. Nf3 {[%clk 0:02:58]}  O-O {[%clk 0:02:56]} 8. Bg5 {[%clk 0:02:58]}  e4 {[%clk 0:02:47]} 9. Nfd2 {[%clk 0:02:52]}  e3 {[%clk 0:01:47]} 10. Bxe3 {[%clk 0:02:32]}  Bxe3 {[%clk 0:01:46]} 11. fxe3 {[%clk 0:02:33]}  Ng4 {[%clk 0:01:46]} 12. Qf3 {[%clk 0:02:21]}  Qb6 {[%clk 0:01:44]} 13. O-O {[%clk 0:02:06]}  Nxe3 {[%clk 0:01:43]} 14. Rf2 {[%clk 0:01:36]}  Ng4 {[%clk 0:01:42]} 15. Nc3 {[%clk 0:01:26]}  Nxf2 {[%clk 0:01:39]} 16. Qxf2 {[%clk 0:01:27]}  Qxb2 {[%clk 0:01:36]} 17. Re1 {[%clk 0:01:27]}  Qb6 {[%clk 0:01:21]} 18. d4 {[%clk 0:01:26]}  Be6 {[%clk 0:01:19]} 19. Rxe6 {[%clk 0:01:25]}  fxe6 {[%clk 0:01:20]} 20. Bxe6+ {[%clk 0:01:25]} 1-0


[Site "https://www.chess.com"]

[Event "Titled Tuesday Blitz January 11 2022"]
[White "Tasev, Dejan"]
[Black "Triapishko, Alexandr"]
[WhiteFideId "936618"]
[BlackFideId "14122286"]
[WhiteElo "2253"]
[BlackElo "2479"]
[Result "1/2-1/2"]
[Round "11"]
[TimeControl "180+1"]
[Date "2022.01.11"]
[WhiteClock "0:00:09"]
[BlackClock "0:01:02"]

1. e4 {[%clk 0:02:58]}  d6 {[%clk 0:03:00]} 2. d4 {[%clk 0:02:58]}  e5 {[%clk 0:03:01]} 3. Ne2 {[%clk 0:02:52]}  exd4 {[%clk 0:03:01]} 4. Nxd4 {[%clk 0:02:52]}  Nf6 {[%clk 0:03:02]} 5. Nc3 {[%clk 0:02:52]}  g6 {[%clk 0:02:56]} 6. g3 {[%clk 0:02:51]}  Bg7 {[%clk 0:02:55]} 7. Bg2 {[%clk 0:02:51]}  O-O {[%clk 0:02:55]} 8. O-O {[%clk 0:02:51]}  Re8 {[%clk 0:02:56]} 9. Re1 {[%clk 0:02:48]}  Bd7 {[%clk 0:02:52]} 10. h3 {[%clk 0:02:46]}  Nc6 {[%clk 0:02:48]} 11. Be3 {[%clk 0:02:35]}  Nxd4 {[%clk 0:02:43]} 12. Bxd4 {[%clk 0:02:33]}  Bc6 {[%clk 0:02:43]} 13. Qd3 {[%clk 0:02:26]}  a5 {[%clk 0:02:43]} 14. a4 {[%clk 0:02:21]}  Nd7 {[%clk 0:02:41]} 15. Bxg7 {[%clk 0:02:19]}  Kxg7 {[%clk 0:02:42]} 16. Nd5 {[%clk 0:02:02]}  Bxd5 {[%clk 0:02:40]} 17. Qxd5 {[%clk 0:02:02]}  Nc5 {[%clk 0:02:24]} 18. e5 {[%clk 0:01:42]}  c6 {[%clk 0:02:24]} 19. Qd4 {[%clk 0:01:25]}  Ne6 {[%clk 0:02:23]} 20. Qc3 {[%clk 0:01:24]}  dxe5 {[%clk 0:02:19]} 21. Qxe5+ {[%clk 0:01:21]}  Qf6 {[%clk 0:02:19]} 22. Qxf6+ {[%clk 0:01:18]}  Kxf6 {[%clk 0:02:19]} 23. Rad1 {[%clk 0:01:17]}  Rad8 {[%clk 0:02:18]} 24. b3 {[%clk 0:01:10]}  Rxd1 {[%clk 0:02:14]} 25. Rxd1 {[%clk 0:01:10]}  Rd8 {[%clk 0:02:15]} 26. Rxd8 {[%clk 0:01:08]}  Nxd8 {[%clk 0:02:16]} 27. Kf1 {[%clk 0:01:09]}  Ke5 {[%clk 0:02:13]} 28. Ke2 {[%clk 0:01:09]}  Kd4 {[%clk 0:02:13]} 29. Kd2 {[%clk 0:01:09]}  Ne6 {[%clk 0:02:14]} 30. f4 {[%clk 0:00:58]}  Kc5 {[%clk 0:02:11]} 31. c3 {[%clk 0:00:56]}  b5 {[%clk 0:02:08]} 32. axb5 {[%clk 0:00:56]}  cxb5 {[%clk 0:02:09]} 33. Be4 {[%clk 0:00:47]}  h5 {[%clk 0:02:00]} 34. h4 {[%clk 0:00:45]}  a4 {[%clk 0:01:59]} 35. bxa4 {[%clk 0:00:41]}  bxa4 {[%clk 0:02:00]} 36. Bb1 {[%clk 0:00:39]}  Ng7 {[%clk 0:01:49]} 37. Ba2 {[%clk 0:00:33]}  a3 {[%clk 0:01:49]} 38. Bxf7 {[%clk 0:00:23]}  Nf5 {[%clk 0:01:50]} 39. Kc2 {[%clk 0:00:22]}  Nxg3 {[%clk 0:01:26]} 40. Bxg6 {[%clk 0:00:22]}  Ne2 {[%clk 0:01:18]} 41. f5 {[%clk 0:00:19]}  Nf4 {[%clk 0:01:14]} 42. Kb3 {[%clk 0:00:17]}  Kd6 {[%clk 0:01:09]} 43. Kxa3 {[%clk 0:00:17]}  Ng2 {[%clk 0:01:06]} 44. Bxh5 {[%clk 0:00:15]}  Ke5 {[%clk 0:01:05]} 45. f6 {[%clk 0:00:16]}  Kxf6 {[%clk 0:01:05]} 46. Kb4 {[%clk 0:00:12]}  Nxh4 {[%clk 0:01:05]} 47. Kc5 {[%clk 0:00:12]}  Ke5 {[%clk 0:01:04]} 48. Kb6 {[%clk 0:00:11]}  Nf5 {[%clk 0:01:03]} 49. c4 {[%clk 0:00:10]}  Kd4 {[%clk 0:01:01]} 50. c5 {[%clk 0:00:10]}  Ne7 {[%clk 0:01:02]} 51. Bf3 {[%clk 0:00:09]}  Nc8+ {[%clk 0:01:02]} 52. Kc7 {[%clk 0:00:09]}  Kxc5 {[%clk 0:01:02]} 1/2-1/2


[Site "https://www.chess.com"]

[Event "Titled Tuesday Blitz January 11 2022"]
[White "Vysochin, Spartak"]
[Black "Mitusov, Semen"]
[WhiteFideId "14103516"]
[BlackFideId "14151049"]
[WhiteElo "2401"]
[BlackElo "2246"]
[Result "0-1"]
[Round "11"]
[TimeControl "180+1"]
[Date "2022.01.11"]
[WhiteClock "0:00:05"]
[BlackClock "0:00:34"]

1. e4 {[%clk 0:03:00]}  e5 {[%clk 0:02:55]} 2. d4 {[%clk 0:03:00]}  exd4 {[%clk 0:02:55]} 3. Qxd4 {[%clk 0:02:54]}  Nc6 {[%clk 0:02:54]} 4. Qd3 {[%clk 0:02:55]}  Nf6 {[%clk 0:02:52]} 5. Nc3 {[%clk 0:02:54]}  Bb4 {[%clk 0:02:50]} 6. Bd2 {[%clk 0:02:53]}  O-O {[%clk 0:02:48]} 7. O-O-O {[%clk 0:02:54]}  d6 {[%clk 0:02:47]} 8. f3 {[%clk 0:02:43]}  Be6 {[%clk 0:02:44]} 9. Bg5 {[%clk 0:02:40]}  h6 {[%clk 0:02:39]} 10. Bh4 {[%clk 0:02:40]}  Ne5 {[%clk 0:02:32]} 11. Qe3 {[%clk 0:02:20]}  Ng6 {[%clk 0:02:30]} 12. Be1 {[%clk 0:02:16]}  Bc5 {[%clk 0:02:27]} 13. Qd2 {[%clk 0:02:12]}  Re8 {[%clk 0:02:21]} 14. Nge2 {[%clk 0:02:08]}  c6 {[%clk 0:02:08]} 15. Nd4 {[%clk 0:02:06]}  d5 {[%clk 0:02:05]} 16. Nxe6 {[%clk 0:02:02]}  Rxe6 {[%clk 0:02:06]} 17. Kb1 {[%clk 0:01:57]}  Qe7 {[%clk 0:01:51]} 18. exd5 {[%clk 0:01:53]}  cxd5 {[%clk 0:01:49]} 19. Bg3 {[%clk 0:01:48]}  d4 {[%clk 0:01:41]} 20. Na4 {[%clk 0:01:36]}  Bb4 {[%clk 0:01:36]} 21. Qxd4 {[%clk 0:01:31]}  Nh5 {[%clk 0:01:19]} 22. Bc4 {[%clk 0:01:25]}  Nxg3 {[%clk 0:01:19]} 23. hxg3 {[%clk 0:01:18]}  Rd6 {[%clk 0:01:10]} 24. Bd5 {[%clk 0:01:18]}  Rad8 {[%clk 0:01:07]} 25. c4 {[%clk 0:00:59]}  b5 {[%clk 0:01:04]} 26. Nc3 {[%clk 0:00:48]}  bxc4 {[%clk 0:01:03]} 27. Rhe1 {[%clk 0:00:40]}  Bxc3 {[%clk 0:00:57]} 28. Qxc3 {[%clk 0:00:32]}  Qd7 {[%clk 0:00:54]} 29. Qxc4 {[%clk 0:00:20]}  Rxd5 {[%clk 0:00:54]} 30. Rxd5 {[%clk 0:00:17]}  Qxd5 {[%clk 0:00:55]} 31. Re8+ {[%clk 0:00:17]}  Kh7 {[%clk 0:00:55]} 32. Qxd5 {[%clk 0:00:17]}  Rxd5 {[%clk 0:00:55]} 33. Ra8 {[%clk 0:00:18]}  Rd7 {[%clk 0:00:52]} 34. Kc2 {[%clk 0:00:18]}  Ne7 {[%clk 0:00:50]} 35. b4 {[%clk 0:00:16]}  Nf5 {[%clk 0:00:47]} 36. a4 {[%clk 0:00:14]}  Nxg3 {[%clk 0:00:45]} 37. b5 {[%clk 0:00:15]}  Nf5 {[%clk 0:00:44]} 38. Kc3 {[%clk 0:00:15]}  Ne3 {[%clk 0:00:41]} 39. g4 {[%clk 0:00:13]}  f5 {[%clk 0:00:40]} 40. gxf5 {[%clk 0:00:11]}  h5 {[%clk 0:00:39]} 41. a5 {[%clk 0:00:12]}  h4 {[%clk 0:00:38]} 42. Re8 {[%clk 0:00:11]}  Nxf5 {[%clk 0:00:37]} 43. Re2 {[%clk 0:00:10]}  Rd5 {[%clk 0:00:33]} 44. Kc4 {[%clk 0:00:09]}  Rxb5 {[%clk 0:00:33]} 45. Kxb5 {[%clk 0:00:04]}  Nd4+ {[%clk 0:00:33]} 46. Ka6 {[%clk 0:00:04]}  Nxe2 {[%clk 0:00:34]} 47. Kxa7 {[%clk 0:00:05]}  h3 {[%clk 0:00:34]} 0-1


[Site "https://www.chess.com"]